[Event "Czech Youth U14 Girls 2024"]
[Site "Kouty nad Desnou"]
[Date "2024.03.11"]
[Round "3.7"]
[White "Archlebova, Iva"]
[Black "Kubatova, Beta"]
[Result "0-1"]
[ECO "B10"]
[WhiteElo "1488"]
[BlackElo "1666"]
[Annotator "NA RC"]
[PlyCount "142"]
[EventDate "2024.03.10"]
[EventType "swiss"]
[EventCountry "CZE"]
[SourceTitle "playchess.com"]
[Source "ChessBase"]
[SourceQuality "1"]
[TimeControl "40/5400+30:1800+30"]

1. e4 {[%emt 0:00:02]} c6 {[%emt 0:00:07]} 2. Nf3 {[%emt 0:00:39]} d5 {[%emt 0:00:35]} 3. exd5 {[%emt 0:01:02]} cxd5 {[%emt 0:00:56]} 4. d4 {[%emt 0:00:56]} Nc6 {[%emt 0:02:40]} 5. Nc3 {[%emt 0:01:32]} Bg4 {[%emt 0:03:05]} 6. Be2 {[%emt 0:01:09]} Nf6 {[%emt 0:02:11]} 7. Bf4 {[%emt 0:07:13]} a6 {[%emt 0:03:14]} 8. O-O {[%emt 0:01:00]} e6 {[%emt 0:00:50]} 9. a3 {[%emt 0:07:03]} Bd6 {[%emt 0:03:55]} 10. Bg5 {[%emt 0:16:12]} O-O {[%emt 0:02:21]} 11. Re1 {[%emt 0:04:53]} Be7 {[%emt 0:05:23]} 12. Nh4 {[%emt 0:07:25]} Bxe2 {[%emt 0:05:18]} 13. Rxe2 {[%emt 0:03:00]} Qb6 {[%emt 0:03:40]} 14. Na4 {[%emt 0:09:46]} Qxd4 {[%emt 0:03:13]} 15. Qxd4 {[%emt 0:00:17]} Nxd4 {[%emt 0:00:09]} 16. Rd2 {[%emt 0:01:25]} Nc6 {[%emt 0:01:28]} 17. Nf3 {[%emt 0:02:59]} h6 {[%emt 0:03:54]} 18. Bh4 {[%emt 0:02:39]} g5 {[%emt 0:01:12]} 19. Bg3 {[%emt 0:01:08]} Ne4 {[%emt 0:01:01]} 20. Rd3 {[%emt 0:02:37]} Nxg3 {[%emt 0:00:57]} 21. hxg3 {[%emt 0:00:26]} b5 {[%emt 0:02:26]} 22. Nc3 {[%emt 0:01:49]} Bf6 {[%emt 0:04:57]} 23. Rb1 {[%emt 0:02:09]} Rfd8 {[%emt 0:04:13]} 24. Ne2 {[%emt 0:01:41]} Rac8 {[%emt 0:02:59]} 25. c3 {[%emt 0:01:13]} e5 {[%emt 0:03:15]} 26. Rd2 {[%emt 0:01:45]} Rc7 {[%emt 0:06:30]} 27. Rbd1 {[%emt 0:01:39]} Rcd7 {[%emt 0:00:39]} 28. g4 {[%emt 0:01:46]} Na5 {[%emt 0:03:24]} 29. Rc2 {[%emt 0:06:39]} Nb3 {[%emt 0:04:23]} 30. Nc1 {[%emt 0:05:29]} Nc5 {[%emt 0:02:20]} 31. Re2 {[%emt 0:02:48]} e4 {[%emt 0:03:02]} 32. Nd4 {[%emt 0:00:51]} Bxd4 {[%emt 0:00:43]} 33. cxd4 {[%emt 0:00:49]} Ne6 {[%emt 0:01:50]} 34. g3 {[%emt 0:01:18]} Rc7 {[%emt 0:01:21]} 35. Nb3 {[%emt 0:01:31]} Rdc8 {[%emt 0:01:22]} 36. Red2 {[%emt 0:01:49]} Kg7 {[%emt 0:04:16]} 37. Kg2 {[%emt 0:00:40]} Kg6 {[%emt 0:01:38]} 38. Re1 {[%emt 0:01:20]} Rc2 {[%emt 0:01:41]} 39. Ree2 {[%emt 0:00:16]} R2c7 {[%emt 0:02:32]} 40. f3 {[%emt 0:00:38]} exf3+ {[%emt 0:04:59]} 41. Kxf3 {[%emt 0:30:19]} Rd7 {[%emt 0:32:13]} 42. Re5 {[%emt 0:00:44]} Rd6 {[%emt 0:01:44]} 43. Rf5 {[%emt 0:00:50]} f6 {[%emt 0:01:22]} 44. Rf2 {[%emt 0:00:00]} Ng7 {[%emt 0:00:00]} 45. Ke3 {[%emt 0:00:00]} Nxf5+ {[%emt 0:00:00]} 46. gxf5+ {[%emt 0:00:00]} Kf7 {[%emt 0:00:00]} 47. Nc5 {[%emt 0:00:00]} Re8+ {[%emt 0:00:00]} 48. Kd3 {[%emt 0:00:00]} Rb6 {[%emt 0:00:00]} 49. Rh2 {[%emt 0:00:00]} Rh8 {[%emt 0:00:00]} 50. g4 {[%emt 0:00:00]} a5 {[%emt 0:00:00]} 51. b4 {[%emt 0:00:00]} axb4 {[%emt 0:00:00]} 52. axb4 {[%emt 0:00:00]} Rbb8 {[%emt 0:00:00]} 53. Ra2 {[%emt 0:00:00]} Ra8 {[%emt 0:00:00]} 54. Na6 {[%emt 0:00:00]} Ra7 {[%emt 0:00:00]} 55. Ra5 {[%emt 0:00:00]} Rha8 {[%emt 0:00:00]} 56. Rxb5 {[%emt 0:00:00]} Rxa6 {[%emt 0:00:00]} 57. Rb7+ {[%emt 0:00:00]} Kg8 {[%emt 0:00:00]} 58. b5 {[%emt 0:00:00]} Rd6 {[%emt 0:00:00]} 59. Kc3 {[%emt 0:00:00]} Rad8 {[%emt 0:00:00]} 60. Kb4 {[%emt 0:00:00]} R8d7 {[%emt 0:00:00]} 61. Rb8+ {[%emt 0:00:00]} Kg7 {[%emt 0:00:00]} 62. Kc5 {[%emt 0:00:00]} Rd8 {[%emt 0:00:08]} 63. Rb7+ {[%emt 0:00:00]} R6d7 {[%emt 0:00:09]} 64. Rb6 {[%emt 0:00:00]} Rc7+ {[%emt 0:01:32]} 65. Kb4 {[%emt 0:00:00]} Rc4+ {[%emt 0:01:02]} 66. Kb3 {[%emt 0:00:00]} Rxd4 {[%emt 0:00:39]} 67. Rb7+ {[%emt 0:00:00]} Kg8 {[%emt 0:00:16]} 68. b6 {[%emt 0:00:00]} Rxg4 {[%emt 0:00:51]} 69. Rc7 {[%emt 0:00:00]} Rc4 {[%emt 0:00:43]} 70. Ra7 {[%emt 0:00:00]} Rb8 {[%emt 0:01:12]} 71. b7 {[%emt 0:00:00]} Rc7 {[%emt 0:00:11]} 0-1

[Event "Czech Youth U14 Girls 2024"]
[Site "Kouty nad Desnou"]
[Date "2024.03.11"]
[Round "3.8"]
[White "Archlebova, Eva"]
[Black "Bouchalova, Kveta"]
[Result "0-1"]
[ECO "C50"]
[WhiteElo "1438"]
[BlackElo "1627"]
[Annotator "NA RC"]
[PlyCount "103"]
[EventDate "2024.03.10"]
[EventType "swiss"]
[EventCountry "CZE"]
[SourceTitle "playchess.com"]
[Source "ChessBase"]
[SourceQuality "1"]
[TimeControl "40/5400+30:1800+30"]

1. e4 {[%emt 0:00:05]} e5 {[%emt 0:00:03]} 2. Nf3 {[%emt 0:00:24]} Nc6 {[%emt 0:00:04]} 3. Bc4 {[%emt 0:00:39]} Nf6 {[%emt 0:00:11]} 4. d3 {[%emt 0:00:11]} Bc5 {[%emt 0:01:41]} 5. Nc3 {[%emt 0:02:18]} O-O {[%emt 0:01:10]} 6. Bg5 {[%emt 0:05:50]} h6 {[%emt 0:01:22]} 7. Bh4 {[%emt 0:00:34]} Be7 {[%emt 0:01:19]} 8. Bg3 {[%emt 0:00:24]} d6 {[%emt 0:00:28]} 9. d4 {[%emt 0:01:58]} exd4 {[%emt 0:21:39]} 10. Nxd4 {[%emt 0:00:12]} Nxd4 {[%emt 0:00:05]} 11. Qxd4 {[%emt 0:00:15]} Nh5 {[%emt 0:01:51]} 12. O-O-O {[%emt 0:01:03]} Nxg3 {[%emt 0:01:29]} 13. hxg3 {[%emt 0:00:13]} Bf6 {[%emt 0:02:41]} 14. Qd3 {[%emt 0:03:52]} a6 {[%emt 0:04:06]} 15. Kb1 {[%emt 0:04:05]} b5 {[%emt 0:01:45]} 16. Bd5 {[%emt 0:01:40]} Rb8 {[%emt 0:01:40]} 17. b4 {[%emt 0:03:33]} Bd7 {[%emt 0:03:09]} 18. Qe3 {[%emt 0:06:49]} Qe7 {[%emt 0:06:43]} 19. a3 {[%emt 0:02:15]} Rfc8 {[%emt 0:02:47]} 20. f4 {[%emt 0:03:19]} c5 {[%emt 0:03:15]} 21. Na2 {[%emt 0:02:50]} cxb4 {[%emt 0:07:57]} 22. axb4 {[%emt 0:00:27]} Be6 {[%emt 0:05:07]} 23. c3 {[%emt 0:15:37]} Qc7 {[%emt 0:14:07]} 24. Bxe6 {[%emt 0:05:31]} fxe6 {[%emt 0:00:11]} 25. Rc1 {[%emt 0:00:51]} Ra8 {[%emt 0:04:30]} 26. Rhe1 {[%emt 0:01:30]} Qc4 {[%emt 0:02:55]} 27. Qe2 {[%emt 0:03:55]} Kf7 {[%emt 0:06:32]} 28. Qxc4 {[%emt 0:00:52]} Rxc4 {[%emt 0:00:08]} 29. e5 {[%emt 0:01:15]} dxe5 {[%emt 0:00:44]} 30. fxe5 {[%emt 0:00:10]} Bd8 {[%emt 0:01:22]} 31. Rcd1 {[%emt 0:00:54]} Ke7 {[%emt 0:01:02]} 32. Rf1 {[%emt 0:04:17]} Bc7 {[%emt 0:00:50]} 33. Rde1 {[%emt 0:01:25]} Rf8 {[%emt 0:01:29]} 34. Rf3 {[%emt 0:01:26]} Rf5 {[%emt 0:00:25]} 35. Rxf5 {[%emt 0:01:36]} exf5 {[%emt 0:00:06]} 36. Kc2 {[%emt 0:05:11]} Rg4 {[%emt 0:01:00]} 37. Re3 {[%emt 0:03:56]} Ke6 {[%emt 0:00:43]} 38. Nc1 {[%emt 0:00:25]} Bb6 {[%emt 0:00:45]} 39. Re1 {[%emt 0:02:06]} Rxg3 {[%emt 0:00:25]} 40. Re2 {[%emt 0:01:06]} a5 {[%emt 0:01:41]} 41. Nd3 {[%emt 0:32:00]} axb4 {[%emt 0:30:50]} 42. cxb4 {[%emt 0:00:16]} Rg4 {[%emt 0:00:00]} 43. Nc5+ {[%emt 0:00:00]} Bxc5 {[%emt 0:00:00]} 44. bxc5 {[%emt 0:00:00]} Rc4+ {[%emt 0:00:00]} 45. Kb3 {[%emt 0:00:00]} Rxc5 {[%emt 0:00:00]} 46. Kb4 {[%emt 0:00:00]} Rxe5 {[%emt 0:00:00]} 47. Rxe5+ {[%emt 0:00:00]} Kxe5 {[%emt 0:00:00]} 48. Kxb5 {[%emt 0:00:00]} Kf4 {[%emt 0:00:00]} 49. Kc4 {[%emt 0:00:00]} Kg3 {[%emt 0:00:00]} 50. Kd3 {[%emt 0:00:00]} Kxg2 {[%emt 0:00:00]} 51. Ke3 {[%emt 0:00:00]} Kg3 {[%emt 0:00:00]} 52. Kd4 0-1

[Event "Czech Youth U14 Girls 2024"]
[Site "Kouty nad Desnou"]
[Date "2024.03.11"]
[Round "3.9"]
[White "Mojzisova, Barbora"]
[Black "Kavanova, Valentyna"]
[Result "1-0"]
[ECO "B35"]
[WhiteElo "1623"]
[BlackElo "1539"]
[Annotator "NA RC"]
[PlyCount "123"]
[EventDate "2024.03.10"]
[EventType "swiss"]
[EventCountry "CZE"]
[SourceTitle "playchess.com"]
[Source "ChessBase"]
[SourceQuality "1"]
[TimeControl "40/5400+30:1800+30"]

1. e4 {[%emt 0:00:03]} c5 {[%emt 0:00:08]} 2. Nf3 {[%emt 0:00:11]} Nc6 {[%emt 0:00:11]} 3. d4 {[%emt 0:00:15]} cxd4 {[%emt 0:00:09]} 4. Nxd4 {[%emt 0:00:04]} Nf6 {[%emt 0:00:11]} 5. Nc3 {[%emt 0:00:43]} g6 {[%emt 0:00:15]} 6. Bc4 {[%emt 0:02:15]} Bg7 {[%emt 0:00:30]} 7. Be3 {[%emt 0:02:50]} O-O {[%emt 0:00:22]} 8. Qd2 {[%emt 0:02:58]} Ng4 {[%emt 0:07:44]} 9. Nb3 {[%emt 0:05:00]} d6 {[%emt 0:03:42]} 10. f3 {[%emt 0:02:40]} Nxe3 {[%emt 0:01:48]} 11. Qxe3 {[%emt 0:01:04]} Ne5 {[%emt 0:01:30]} 12. Be2 {[%emt 0:05:41]} Bd7 {[%emt 0:01:36]} 13. O-O {[%emt 0:03:45]} Nc6 {[%emt 0:02:46]} 14. Kh1 {[%emt 0:01:29]} Rc8 {[%emt 0:00:26]} 15. a3 {[%emt 0:03:27]} Re8 {[%emt 0:03:21]} 16. Rab1 {[%emt 0:05:09]} e6 {[%emt 0:00:27]} 17. Nb5 {[%emt 0:04:10]} Qe7 {[%emt 0:04:24]} 18. Qd2 {[%emt 0:04:22]} d5 {[%emt 0:03:07]} 19. exd5 {[%emt 0:09:01]} exd5 {[%emt 0:01:45]} 20. Rfe1 {[%emt 0:01:51]} Be5 {[%emt 0:03:59]} 21. f4 {[%emt 0:02:36]} Bb8 {[%emt 0:01:16]} 22. Bf3 {[%emt 0:02:26]} Qf6 {[%emt 0:06:12]} 23. Nc5 {[%emt 0:04:19]} Bf5 {[%emt 0:05:30]} 24. Nxb7 {[%emt 0:02:44]} Rxe1+ {[%emt 0:01:13]} 25. Rxe1 {[%emt 0:01:31]} Qxb2 {[%emt 0:01:52]} 26. Qxd5 {[%emt 0:01:15]} Bxf4 {[%emt 0:02:17]} 27. N7d6 {[%emt 0:02:14]} Bxd6 {[%emt 0:04:37]} 28. Nxd6 {[%emt 0:01:00]} Rc7 {[%emt 0:02:23]} 29. Nxf5 {[%emt 0:05:50]} gxf5 {[%emt 0:00:25]} 30. Qxf5 {[%emt 0:00:35]} Ne7 {[%emt 0:02:20]} 31. Qg5+ {[%emt 0:01:58]} Kh8 {[%emt 0:03:52]} 32. Rd1 {[%emt 0:01:04]} Ng8 {[%emt 0:02:37]} 33. Qe3 {[%emt 0:02:45]} Rxc2 {[%emt 0:01:07]} 34. Qxa7 {[%emt 0:00:50]} Rc1 {[%emt 0:01:08]} 35. Qxf7 {[%emt 0:02:45]} Qxa3 {[%emt 0:03:14]} 36. Qd5 {[%emt 0:01:14]} Qa1 {[%emt 0:01:43]} 37. Qd2 {[%emt 0:01:00]} Rxd1+ {[%emt 0:00:31]} 38. Qxd1 {[%emt 0:01:42]} Qxd1+ {[%emt 0:00:12]} 39. Bxd1 {[%emt 0:00:03]} Kg7 {[%emt 0:00:16]} 40. g3 {[%emt 0:00:25]} Nf6 {[%emt 0:00:18]} 41. Bf3 {[%emt 0:30:31]} Kg6 {[%emt 0:30:50]} 42. Kg2 {[%emt 0:00:08]} Kg5 {[%emt 0:01:12]} 43. h3 {[%emt 0:02:32]} h5 {[%emt 0:01:17]} 44. h4+ {[%emt 0:00:39]} Kf5 {[%emt 0:00:20]} 45. Kf2 {[%emt 0:00:48]} Ne4+ {[%emt 0:01:40]} 46. Kg2 {[%emt 0:03:05]} Nf6 {[%emt 0:00:44]} 47. Kh3 {[%emt 0:02:31]} Ng4 {[%emt 0:02:33]} 48. Bxg4+ {[%emt 0:00:49]} hxg4+ {[%emt 0:00:05]} 49. Kg2 {[%emt 0:00:06]} Ke5 {[%emt 0:01:21]} 50. Kf2 {[%emt 0:01:19]} Kf5 {[%emt 0:00:43]} 51. Ke3 {[%emt 0:01:08]} Ke5 {[%emt 0:01:16]} 52. Kd3 {[%emt 0:01:37]} Kd5 {[%emt 0:00:37]} 53. Kc3 {[%emt 0:01:45]} Ke4 {[%emt 0:00:24]} 54. Kc4 {[%emt 0:00:54]} Kf3 {[%emt 0:00:10]} 55. h5 {[%emt 0:00:08]} Kxg3 {[%emt 0:00:12]} 56. h6 {[%emt 0:00:04]} Kf2 {[%emt 0:00:49]} 57. h7 {[%emt 0:00:12]} g3 {[%emt 0:00:05]} 58. h8=Q {[%emt 0:00:04]} g2 {[%emt 0:00:17]} 59. Qf6+ {[%emt 0:00:21]} Kg1 {[%emt 0:00:12]} 60. Kd3 {[%emt 0:00:32]} Kh2 {[%emt 0:00:42]} 61. Qh4+ {[%emt 0:00:14]} Kg1 {[%emt 0:00:26]} 62. Ke3 {[%emt 0:00:14]} 1-0

[Event "Czech Youth U14 Girls 2024"]
[Site "Kouty nad Desnou"]
[Date "2024.03.11"]
[Round "3.10"]
[White "Kubatova, Ema"]
[Black "Peskova, Sara"]
[Result "1/2-1/2"]
[ECO "D08"]
[WhiteElo "1580"]
[BlackElo "1481"]
[Annotator "NA RC"]
[PlyCount "74"]
[EventDate "2024.03.10"]
[EventType "swiss"]
[EventCountry "CZE"]
[SourceTitle "playchess.com"]
[Source "ChessBase"]
[SourceQuality "1"]
[TimeControl "40/5400+30:1800+30"]

1. d4 {[%emt 0:00:03]} d5 {[%emt 0:00:13]} 2. c4 {[%emt 0:00:24]} e5 {[%emt 0:00:30]} 3. dxe5 {[%emt 0:00:49]} d4 {[%emt 0:00:12]} 4. Nf3 {[%emt 0:00:45]} Nc6 {[%emt 0:01:15]} 5. a3 {[%emt 0:00:41]} a5 {[%emt 0:00:27]} 6. e3 {[%emt 0:07:43]} Bc5 {[%emt 0:00:53]} 7. exd4 {[%emt 0:10:03]} Bxd4 {[%emt 0:00:40]} 8. Nxd4 {[%emt 0:01:32]} Qxd4 {[%emt 0:00:13]} 9. Qxd4 {[%emt 0:00:50]} Nxd4 {[%emt 0:00:13]} 10. Kd1 {[%emt 0:13:41]} Bg4+ {[%emt 0:04:46]} 11. f3 {[%emt 0:00:39]} O-O-O {[%emt 0:18:05]} 12. Nd2 {[%emt 0:06:38]} Nxf3 {[%emt 0:04:17]} 13. Be2 {[%emt 0:03:15]} Nxe5 {[%emt 0:01:40]} 14. Bxg4+ {[%emt 0:01:12]} Nxg4 {[%emt 0:00:01]} 15. Kc2 {[%emt 0:00:38]} N8f6 {[%emt 0:06:16]} 16. Kb1 {[%emt 0:07:04]} Rhe8 {[%emt 0:08:20]} 17. Nf3 {[%emt 0:13:50]} Re2 {[%emt 0:13:54]} 18. Rg1 {[%emt 0:03:41]} Nf2 {[%emt 0:09:45]} 19. Re1 {[%emt 0:12:32]} Rxe1 {[%emt 0:01:41]} 20. Nxe1 {[%emt 0:00:06]} Rd1 {[%emt 0:00:44]} 21. Nf3 {[%emt 0:01:10]} h6 {[%emt 0:07:00]} 22. Kc2 {[%emt 0:03:43]} Rd7 {[%emt 0:02:57]} 23. Bd2 {[%emt 0:01:39]} b6 {[%emt 0:06:16]} 24. Bc3 {[%emt 0:03:30]} N2e4 {[%emt 0:01:26]} 25. Re1 {[%emt 0:01:02]} Nxc3 {[%emt 0:00:28]} 26. Kxc3 {[%emt 0:00:03]} Nh5 {[%emt 0:02:06]} 27. Nd4 {[%emt 0:01:26]} g6 {[%emt 0:02:20]} 28. Nc6 {[%emt 0:00:51]} Kb7 {[%emt 0:00:56]} 29. Ne5 {[%emt 0:01:18]} Re7 {[%emt 0:00:32]} 30. Nd3 {[%emt 0:00:44]} Rxe1 31. Nxe1 {[%emt 0:00:00]} Kc6 {[%emt 0:00:56]} 32. Nd3 {[%emt 0:01:42]} f6 {[%emt 0:00:17]} 33. g4 {[%emt 0:00:49]} Ng7 {[%emt 0:00:03]} 34. Nf4 {[%emt 0:00:48]} g5 {[%emt 0:00:57]} 35. Nd5 {[%emt 0:00:40]} Kd6 {[%emt 0:01:31]} 36. Nxf6 {[%emt 0:00:39]} Ke6 {[%emt 0:00:59]} 37. Nd5 {[%emt 0:00:45]} Kd6 {[%emt 0:00:18]} 1/2-1/2

[Event "Czech Youth U14 Girls 2024"]
[Site "Kouty nad Desnou"]
[Date "2024.03.11"]
[Round "3.11"]
[White "Kratka, Tereza"]
[Black "Myronova, Sofia"]
[Result "1-0"]
[ECO "A05"]
[WhiteElo "1477"]
[BlackElo "1456"]
[Annotator "NA RC"]
[PlyCount "87"]
[EventDate "2024.03.10"]
[EventType "swiss"]
[EventCountry "CZE"]
[SourceTitle "playchess.com"]
[Source "ChessBase"]
[SourceQuality "1"]
[TimeControl "40/5400+30:1800+30"]

1. Nf3 {[%emt 0:00:03]} Nf6 {[%emt 0:00:42]} 2. c4 {[%emt 0:00:19]} c5 {[%emt 0:00:07]} 3. g3 {[%emt 0:00:19]} Nc6 {[%emt 0:00:22]} 4. Bg2 {[%emt 0:00:35]} e6 {[%emt 0:00:26]} 5. O-O {[%emt 0:00:53]} Be7 {[%emt 0:00:13]} 6. d3 {[%emt 0:00:58]} O-O 7. Nc3 {[%emt 0:01:27]} d6 {[%emt 0:05:08]} 8. Bf4 {[%emt 0:03:43]} Bd7 {[%emt 0:01:14]} 9. a3 {[%emt 0:02:52]} a5 {[%emt 0:02:14]} 10. Nd2 {[%emt 0:05:12]} Rb8 {[%emt 0:11:05]} 11. Nde4 {[%emt 0:02:00]} Nd4 {[%emt 0:00:56]} 12. Nxd6 {[%emt 0:03:04]} Qb6 {[%emt 0:02:40]} 13. Nde4 {[%emt 0:03:19]} Rbd8 {[%emt 0:01:33]} 14. Nxf6+ {[%emt 0:02:39]} Bxf6 {[%emt 0:00:47]} 15. Rb1 {[%emt 0:01:38]} Bc6 {[%emt 0:04:54]} 16. Re1 {[%emt 0:05:07]} Rfe8 {[%emt 0:11:08]} 17. Na4 {[%emt 0:03:45]} Bxa4 {[%emt 0:06:55]} 18. Qxa4 {[%emt 0:00:39]} e5 {[%emt 0:00:15]} 19. Bd2 {[%emt 0:01:47]} Ra8 {[%emt 0:01:17]} 20. Qd1 {[%emt 0:01:16]} Nb3 {[%emt 0:01:00]} 21. h4 {[%emt 0:01:56]} h6 {[%emt 0:02:51]} 22. Bc3 {[%emt 0:01:55]} a4 {[%emt 0:01:45]} 23. Bd5 {[%emt 0:03:41]} Ra7 {[%emt 0:05:38]} 24. e4 {[%emt 0:02:57]} g6 {[%emt 0:10:37]} 25. Qf3 {[%emt 0:02:39]} Rf8 {[%emt 0:01:26]} 26. Kg2 {[%emt 0:02:24]} Kg7 {[%emt 0:00:21]} 27. h5 {[%emt 0:01:32]} Qd8 {[%emt 0:01:49]} 28. Rh1 {[%emt 0:01:46]} b6 {[%emt 0:02:43]} 29. Qd1 {[%emt 0:04:15]} g5 {[%emt 0:02:35]} 30. Bc6 {[%emt 0:03:47]} Nd4 {[%emt 0:05:42]} 31. Bxa4 {[%emt 0:01:46]} Qd6 {[%emt 0:02:13]} 32. Bxd4 {[%emt 0:01:04]} exd4 {[%emt 0:00:37]} 33. Bb5 {[%emt 0:00:59]} Be7 {[%emt 0:00:38]} 34. Re1 {[%emt 0:01:42]} Qe5 {[%emt 0:00:38]} 35. Bc6 {[%emt 0:01:07]} Bd6 {[%emt 0:01:17]} 36. Bd5 {[%emt 0:01:29]} Qe7 {[%emt 0:02:50]} 37. Qg4 {[%emt 0:01:25]} Qe5 {[%emt 0:00:21]} 38. f4 {[%emt 0:01:51]} Qe7 {[%emt 0:00:28]} 39. e5 {[%emt 0:00:21]} Bb8 {[%emt 0:00:08]} 40. Rf1 {[%emt 0:01:52]} f6 {[%emt 0:00:57]} 41. exf6+ {[%emt 0:30:54]} Rxf6 {[%emt 0:31:50]} 42. fxg5 {[%emt 0:00:58]} Rxf1 {[%emt 0:00:26]} 43. gxh6+ {[%emt 0:00:34]} Kf8 {[%emt 0:00:32]} 44. Qg8# {[%emt 0:00:31]} 1-0

[Event "Czech Youth U14 Girls 2024"]
[Site "Kouty nad Desnou"]
[Date "2024.03.11"]
[Round "3.12"]
[White "Krisicova, Neli"]
[Black "Pruskova, Justyna"]
[Result "1-0"]
[ECO "C55"]
[WhiteElo "1556"]
[BlackElo "1471"]
[Annotator "NA RC"]
[PlyCount "69"]
[EventDate "2024.03.10"]
[EventType "swiss"]
[EventCountry "CZE"]
[SourceTitle "playchess.com"]
[Source "ChessBase"]
[SourceQuality "1"]
[TimeControl "40/5400+30:1800+30"]

1. e4 {[%emt 0:00:14]} e5 {[%emt 0:00:00]} 2. Nf3 {[%emt 0:00:28]} Nc6 {[%emt 0:00:00]} 3. d4 {[%emt 0:01:20]} exd4 {[%emt 0:00:20]} 4. Bc4 {[%emt 0:01:07]} Nf6 {[%emt 0:01:29]} 5. e5 {[%emt 0:01:04]} d5 {[%emt 0:00:44]} 6. Bb5 {[%emt 0:00:56]} Ne4 {[%emt 0:00:28]} 7. O-O {[%emt 0:02:33]} Bg4 {[%emt 0:00:36]} 8. h3 {[%emt 0:03:45]} Bh5 {[%emt 0:00:48]} 9. Nbd2 {[%emt 0:01:34]} Be7 {[%emt 0:02:15]} 10. Re1 {[%emt 0:01:33]} Nxd2 {[%emt 0:00:35]} 11. Bxd2 {[%emt 0:00:15]} O-O {[%emt 0:00:54]} 12. Qe2 {[%emt 0:01:54]} Re8 {[%emt 0:04:44]} 13. Rad1 {[%emt 0:03:15]} Bf6 {[%emt 0:04:50]} 14. Bxc6 {[%emt 0:05:12]} Rxe5 {[%emt 0:01:08]} 15. Qd3 {[%emt 0:03:39]} Rxe1+ {[%emt 0:00:18]} 16. Rxe1 {[%emt 0:00:16]} bxc6 {[%emt 0:00:23]} 17. Nxd4 {[%emt 0:00:28]} Bxd4 {[%emt 0:00:41]} 18. Qxd4 {[%emt 0:00:07]} Qd7 {[%emt 0:01:43]} 19. Qh4 {[%emt 0:02:49]} Bg6 {[%emt 0:00:36]} 20. Re7 {[%emt 0:02:15]} Qf5 {[%emt 0:02:52]} 21. Rxc7 {[%emt 0:02:12]} Qxc2 {[%emt 0:03:26]} 22. Bc3 {[%emt 0:00:56]} h6 {[%emt 0:00:28]} 23. Qd4 {[%emt 0:01:15]} f6 {[%emt 0:01:07]} 24. Rxc6 {[%emt 0:01:08]} Qe4 {[%emt 0:02:27]} 25. Qc5 {[%emt 0:02:32]} Qf5 {[%emt 0:04:01]} 26. Rd6 {[%emt 0:04:20]} Bf7 {[%emt 0:01:16]} 27. Qb5 {[%emt 0:04:22]} Re8 {[%emt 0:01:11]} 28. Ra6 {[%emt 0:04:44]} Bh5 {[%emt 0:12:06]} 29. Rxa7 {[%emt 0:04:21]} Re2 {[%emt 0:03:07]} 30. Qb8+ {[%emt 0:02:23]} Kh7 {[%emt 0:00:24]} 31. Qg3 {[%emt 0:00:23]} Bg6 {[%emt 0:01:15]} 32. Qh4 {[%emt 0:10:53]} Qc2 {[%emt 0:12:27]} 33. Qxf6 {[%emt 0:04:05]} Qc1+ {[%emt 0:10:19]} 34. Kh2 {[%emt 0:00:16]} Qg5 {[%emt 0:01:50]} 35. Qxg7# {[%emt 0:00:11]} 1-0

[Event "Czech Youth U14 Girls 2024"]
[Site "Kouty nad Desnou"]
[Date "2024.03.11"]
[Round "3.14"]
[White "Martinkovicova, Nela"]
[Black "Spetlova, Stella"]
[Result "1/2-1/2"]
[ECO "B10"]
[WhiteElo "1476"]
[BlackElo "1405"]
[Annotator "NA RC"]
[PlyCount "84"]
[EventDate "2024.03.10"]
[EventType "swiss"]
[EventCountry "CZE"]
[SourceTitle "playchess.com"]
[Source "ChessBase"]
[SourceQuality "1"]
[TimeControl "40/5400+30:1800+30"]

1. e4 {[%emt 0:00:03]} c6 {[%emt 0:00:13]} 2. Nc3 {[%emt 0:00:32]} d5 {[%emt 0:01:30]} 3. exd5 {[%emt 0:01:54]} cxd5 {[%emt 0:01:31]} 4. d4 {[%emt 0:00:42]} Bf5 {[%emt 0:00:56]} 5. Bd3 {[%emt 0:01:17]} Bxd3 {[%emt 0:02:05]} 6. Qxd3 {[%emt 0:00:59]} Nc6 {[%emt 0:02:59]} 7. Nf3 {[%emt 0:02:25]} e6 {[%emt 0:01:55]} 8. O-O {[%emt 0:01:17]} a6 {[%emt 0:04:13]} 9. Bf4 {[%emt 0:01:19]} Bd6 {[%emt 0:01:59]} 10. Bg3 {[%emt 0:01:37]} Nf6 {[%emt 0:02:00]} 11. Rfe1 {[%emt 0:01:21]} h6 {[%emt 0:03:45]} 12. Re2 {[%emt 0:21:59]} O-O {[%emt 0:02:37]} 13. Bh4 {[%emt 0:01:53]} Be7 {[%emt 0:02:24]} 14. Ne5 {[%emt 0:07:43]} Nxe5 {[%emt 0:01:42]} 15. Rxe5 {[%emt 0:02:38]} Nd7 {[%emt 0:01:10]} 16. Bxe7 {[%emt 0:14:43]} Nxe5 {[%emt 0:01:48]} 17. dxe5 {[%emt 0:03:14]} Qxe7 {[%emt 0:00:14]} 18. f4 {[%emt 0:00:50]} Qc5+ {[%emt 0:02:20]} 19. Kh1 {[%emt 0:01:41]} Qc4 {[%emt 0:01:18]} 20. Qd2 {[%emt 0:01:17]} Qb4 {[%emt 0:01:43]} 21. Qc1 {[%emt 0:01:57]} Rac8 {[%emt 0:01:33]} 22. a3 {[%emt 0:03:54]} Qb6 {[%emt 0:02:46]} 23. Qd2 {[%emt 0:01:52]} f6 {[%emt 0:00:54]} 24. exf6 {[%emt 0:01:21]} Rxf6 {[%emt 0:00:15]} 25. Nd1 {[%emt 0:01:06]} Rcf8 {[%emt 0:00:32]} 26. g3 {[%emt 0:01:23]} Rc8 {[%emt 0:00:20]} 27. c3 {[%emt 0:01:06]} Rcf8 {[%emt 0:00:48]} 28. Nf2 {[%emt 0:01:00]} g5 {[%emt 0:02:38]} 29. Ng4 {[%emt 0:01:13]} Rg6 {[%emt 0:02:23]} 30. Ne5 {[%emt 0:01:57]} Rg7 {[%emt 0:00:59]} 31. fxg5 {[%emt 0:02:16]} hxg5 {[%emt 0:01:44]} 32. Rb1 {[%emt 0:02:49]} Qd6 {[%emt 0:01:44]} 33. Nc4 {[%emt 0:01:53]} Qc7 {[%emt 0:01:12]} 34. Ne3 {[%emt 0:00:56]} Qc6 {[%emt 0:03:06]} 35. Kg1 {[%emt 0:01:33]} Qc5 {[%emt 0:01:18]} 36. Kh1 {[%emt 0:00:43]} Rgf7 {[%emt 0:01:25]} 37. Qe2 {[%emt 0:03:13]} Qc6 {[%emt 0:03:34]} 38. Kg1 {[%emt 0:01:05]} Qb6 {[%emt 0:01:21]} 39. Kh1 {[%emt 0:03:59]} Rf2 {[%emt 0:04:26]} 40. Qd3 {[%emt 0:02:03]} R2f7 {[%emt 0:01:14]} 41. Kg2 {[%emt 0:32:40]} Qc6 {[%emt 0:30:44]} 42. Kg1 {[%emt 0:00:57]} Qb6 {[%emt 0:01:56]} 1/2-1/2